Workbook

Sheet Лист1
A1: 1000 | B1: 3E8 | C1: 2275 | E1: =DEC2HEX(C1) -> 8E3
A2: =A1+10 -> 1010 | B2: 3F2 | C2: 755 | E2: =DEC2HEX(C2) -> 2F3
A3: =A2+10 -> 1020 | B3: 3FC | C3: 3315 | E3: CF3
A4: 1030 | B4: 406 | C4: 1540 | E4: 604
A5: 1040 | B5: 410 | C5: 20 | E5: 14
A6: 1050 | B6: 41A | C6: 2580 | E6: A14
A7: 1060 | B7: 424 | C7: 1060 | E7: 424
A8: 1070 | B8: 42E | C8: 3620 | E8: E24
A9: 1080 | B9: 438 | C9: 2100 | E9: 834 | F9: Прошу помощи в следующем вопросе
A10: qw12 | E10: 0 | F10: Считать с первого столбца рабочего листа N (N вводится с
A11: 2011 | B11: 7DB | C11: 3031 | E11: BD7 | F11: клавиатуры) вещественных чисел типа Single. Перевести числа в шестнадцатеричный формат и вывести в соседний столбец. В шестнадцатеричном представлении числа поменять 1-ую цифру с 8-ой, 2-ую - с 7-ой, 3-ю с 6-ой, 4-ю с 5-ой и т.д. Полученное число перевести в
A12: 2012 | B12: 7DC | C12: 3287 | E12: CD7 | F12: десятичную систему счисления и вывести в 3 столбец рабочего листа.
E13: 0
A14: 2014 | B14: 7DE | C14: 3799 | E14: ED7
A15: 0 | B15: 0 | C15: 0 | E15: 0
A16: 3000 | B16: BB8 | C16: 2235 | E16: 8BB
A17: =A16+500 -> 3500 | B17: DAC | C17: 3245 | E17: CAD
A18: =A17+500 -> 4000 | B18: FA0 | C18: 175 | E18: AF
A19: 4500 | B19: 1194 | C19: 18705 | E19: 4911
A20: 5000 | B20: 1388 | C20: 34865 | E20: 8831
A21: 5500 | B21: 157C | C21: 51025 | E21: C751
A22: 6000 | E22: 0
A23: 6500 | E23: 0
A24: 7000 | E24: 0
A25: 7500 | E25: 0
A26: 8000 | E26: 0
A27: 8500 | E27: 0
A28: 9000 | E28: 0
A29: 9500 | E29: 0
A30: 10000 | E30: 0
A31: 10500 | E31: 0
A32: 11000 | E32: 0
A33: 11500 | E33: 0
A34: 12000 | E34: 0
A35: 12500 | E35: 0 | H35: =DEC2HEX($F$3) -> 0
A36: 13000 | E36: 0
A37: 13500 | E37: 0
A38: 14000 | E38: 0
A39: 14500 | E39: 0
A40: 15000 | E40: 0
A41: 15500 | E41: 0
A42: 16000 | E42: 0
A43: 16500 | E43: 0
A44: 17000 | E44: 0
A45: 17500 | E45: 0
A46: 18000 | E46: 0
A47: 18500 | E47: 0
A48: 19000 | E48: 0
A49: 19500 | E49: 0
A50: 20000 | E50: 0
A51: 20500 | E51: 0
A52: 21000 | E52: 0
A53: 21500 | E53: 0
A54: 22000 | E54: 0
A55: 22500 | E55: 0
A56: 23000 | E56: 0
A57: 23500 | E57: 0
A58: 24000 | E58: 0
A59: 24500 | E59: 0
A60: 25000 | E60: 0
A61: 25500 | E61: 0
A62: 26000 | E62: 0
A63: 26500 | E63: 0
A64: 27000 | E64: 0
A65: 27500 | E65: 0
A66: 28000 | E66: =DEC2HEX(C66) -> 0
A67: 28500 | E67: 0
A68: 29000 | E68: 0
A69: 29500 | E69: 0
A70: 30000 | E70: 0
A71: 30500 | E71: 0
A72: 31000 | E72: 0
A73: 31500 | E73: 0
A74: 32000 | E74: 0
A75: 32500 | E75: 0
A76: 33000 | E76: 0
A77: 33500 | E77: 0
A78: 34000 | E78: 0
A79: 34500 | E79: 0
A80: 35000 | E80: 0
A81: 35500 | E81: 0
A82: =A81+500 -> 36000 | E82: 0
A83: 36500 | E83: 0
A84: 37000 | E84: 0
A85: 37500 | E85: 0
A86: 38000 | E86: 0
A87: 38500 | E87: 0
A88: 39000 | E88: 0
A89: 39500 | E89: 0
A90: 40000 | E90: 0
A91: 40500 | E91: 0
A92: 41000 | E92: 0
A93: 41500 | E93: 0
A94: 42000 | E94: 0
A95: 42500 | E95: 0
A96: 43000 | E96: 0
A97: 43500 | E97: 0
A98: 44000 | E98: 0
A99: 44500 | E99: 0
A100: 45000 | E100: 0
A101: 45500 | E101: 0
A102: 46000 | E102: 0

Sheet Лист1 (2)
A1: 300000001 | B1: 11E1A301 | C1: 272244241 | E1: =DEC2HEX(C1) -> 103A1E11
A2: =A1+1000001 -> 301000002 | B2: 11F0E542 | C2: 610144017 | E2: =DEC2HEX(C2) -> 245E0F11
A3: =A2+1000001 -> 302000003 | B3: 12002783 | C3: 946995233 | E3: 38720021
A4: 303000004 | B4: 120F69C4 | C4: 1284960289 | E4: 4C96F021
A5: 304000005 | B5: 121EAC05 | C5: 1355473185 | E5: 50CAE121
A6: 305000006 | B6: 122DEE46 | C6: 1693372961 | E6: 64EED221
A7: 306000007 | B7: 123D3087 | C7: 2013516577 | E7: 7803D321
A8: 307000008 | B8: 124C72C8 | C8: 2351416353 | E8: 8C27C421
A9: 308000009 | B9: 125BB509 | C9: 2421929249 | E9: 905BB521 | G9: Прошу помощи в следующем вопросе
A10: qw12 | E10: 0 | G10: Считать с первого столбца рабочего листа N (N вводится с
A11: =A9+1000001 -> 309000010 | B11: 126AF74A | C11: 2759829025 | E11: A47FA621 | G11: клавиатуры) вещественных чисел типа Single. Перевести числа в шестнадцатеричный формат и вывести в соседний столбец. В шестнадцатеричном представлении числа поменять 1-ую цифру с 8-ой, 2-ую - с 7-ой, 3-ю с 6-ой, 4-ю с 5-ой и т.д. Полученное число перевести в
A12: =A11+1000001 -> 310000011 | B12: 127A398B | C12: 3096684321 | E12: B893A721 | G12: десятичную систему счисления и вывести в 3 столбец рабочего листа.
E13: 0
A14: =A12+1000001 -> 311000012 | B14: 12897BCC | C14: 3434584097 | E14: CCB79821
A15: 0 | B15: 0 | C15: 0 | E15: 0
A16: =A14+1000001 -> 312000013 | B16: 1298BE0D | C16: 3505096993 | E16: D0EB8921
A17: =A16+1000001 -> 313000014 | B17: 12A8004E | C17: 3825240609 | E17: E4008A21
A18: =A17+1000001 -> 314000015 | E18: 0
A19: 315000016 | E19: 0
A20: 316000017 | E20: 0
A21: 317000018 | E21: 0
A22: 318000019 | E22: 0
A23: 319000020 | E23: 0
A24: 320000021 | E24: 0
A25: 321000022 | E25: 0
A26: 322000023 | E26: 0
A27: 323000024 | E27: 0
A28: 324000025 | E28: 0
A29: 325000026 | E29: 0
A30: 326000027 | E30: 0
A31: 327000028 | E31: 0
A32: 328000029 | E32: 0
A33: 329000030 | E33: 0
A34: 330000031 | E34: 0
A35: 331000032 | E35: 0 | I35: =DEC2HEX($G$3) -> 0
A36: 332000033 | E36: 0
A37: 333000034 | E37: 0
A38: 334000035 | E38: 0
A39: 335000036 | E39: 0
A40: 336000037 | E40: 0
A41: 337000038 | E41: 0
A42: 338000039 | E42: 0
A43: 339000040 | E43: 0
A44: 340000041 | E44: 0
A45: 341000042 | E45: 0
A46: 342000043 | E46: 0
A47: 343000044 | E47: 0
A48: 344000045 | E48: 0
A49: 345000046 | E49: 0
A50: 346000047 | E50: 0
A51: 347000048 | E51: 0
A52: 348000049 | E52: 0
A53: 349000050 | E53: 0
A54: 350000051 | E54: 0
A55: 351000052 | E55: 0
A56: 352000053 | E56: 0
A57: 353000054 | E57: 0
A58: 354000055 | E58: 0
A59: 355000056 | E59: 0
A60: 356000057 | E60: 0
A61: 357000058 | E61: 0
A62: 358000059 | E62: 0
A63: 359000060 | E63: 0
A64: 360000061 | E64: 0
A65: 361000062 | E65: 0
A66: 362000063 | E66: =DEC2HEX(C66) -> 0
A67: 363000064 | E67: 0
A68: 364000065 | E68: 0
A69: 365000066 | E69: 0
A70: 366000067 | E70: 0
A71: 367000068 | E71: 0
A72: 368000069 | E72: 0
A73: 369000070 | E73: 0
A74: 370000071 | E74: 0
A75: 371000072 | E75: 0
A76: 372000073 | E76: 0
A77: 373000074 | E77: 0
A78: 374000075 | E78: 0
A79: 375000076 | E79: 0
A80: 376000077 | E80: 0
A81: 377000078 | E81: 0
A82: =A81+1000001 -> 378000079 | E82: 0
A83: 379000080 | E83: 0
A84: 380000081 | E84: 0
A85: 381000082 | E85: 0
A86: 382000083 | E86: 0
A87: 383000084 | E87: 0
A88: 384000085 | E88: 0
A89: 385000086 | E89: 0
A90: 386000087 | E90: 0
A91: 387000088 | E91: 0
A92: 388000089 | E92: 0
A93: 389000090 | E93: 0
A94: 390000091 | E94: 0
A95: 391000092 | E95: 0
A96: 392000093 | E96: 0
A97: 393000094 | E97: 0
A98: 394000095 | E98: 0
A99: 395000096 | E99: 0
A100: 396000097 | E100: 0
A101: 397000098 | E101: 0
A102: 398000099 | E102: 0
